fUSD/lending_fUSD_20240715
["ID","MTS","AMOUNT","RATE_DAILY","PERIOD"]
[332230740,1721056236765,-7280.18080595,0.00013944,3]
[332230741,1721056236775,-500.0,0.00013944,2]
[332230742,1721056236784,-500.0,0.00013944,2]
[332230743,1721056236794,-500.0,0.00013944,2]
[332230744,1721056236803,-504.53852489,0.00013944,2]
[332230745,1721056236813,-500.0,0.00013944,2]
[332230746,1721056236823,-500.0,0.00013944,2]
[332230747,1721056236832,-500.0,0.00013944,2]
[332230748,1721056236841,-500.0,0.00013944,2]
[332230749,1721056236851,-500.0,0.00013944,2]
[332230750,1721056236861,-500.0,0.00013944,2]
[332230751,1721056236871,-500.0,0.00013944,2]
[332230752,1721056236880,-500.0,0.00013944,2]
[332230753,1721056236890,-500.0,0.00013944,2]
[332230754,1721056236901,-500.0,0.00013944,2]
[332230755,1721056236910,-500.0,0.00013944,2]
[332230756,1721056236919,-500.0,0.00013944,2]
[332230757,1721056236929,-500.0,0.00013944,2]
[332230758,1721056236939,-21840.5424178,0.0001395,3]
[332230759,1721056236949,-500.0,0.00013954,2]
[332230760,1721056236960,-500.0,0.00013954,2]
[332230761,1721056236969,-500.0,0.00013954,2]
[332230762,1721056236979,-500.0,0.00013954,2]
[332230763,1721056236989,-500.0,0.00013954,2]
[332230764,1721056236999,-500.0,0.00013954,2]
[332230765,1721056237009,-500.0,0.00013954,2]
[332230766,1721056237019,-500.0,0.00013954,2]
[332230767,1721056237029,-500.0,0.00013954,2]
[332230768,1721056237039,-500.0,0.00013954,2]
[332230769,1721056237048,-500.0,0.00013954,2]
[332230770,1721056237057,-654.84,0.00013954,2]
[332230771,1721056237067,-500.0,0.00013954,2]
[332230772,1721056237077,-500.0,0.00013954,2]
[332230773,1721056237086,-500.0,0.00013954,2]
[332230774,1721056237096,-500.0,0.00013954,2]
[332230775,1721056237106,-500.0,0.00013954,2]
[332230776,1721056237115,-500.0,0.00013954,2]
[332230777,1721056237125,-500.0,0.00013954,2]
[332230778,1721056237135,-496.80503769,0.00013954,2]
[332230779,1721056237144,-500.0,0.00013954,2]
[332230780,1721056237158,-500.0,0.00013954,2]
[332230781,1721056237168,-500.0,0.00013954,2]
[332230782,1721056237177,-500.0,0.00013954,2]
[332230783,1721056237187,-500.0,0.00013954,2]
[332230784,1721056237197,-500.0,0.00013954,2]
[332230785,1721056237206,-500.0,0.00013954,2]
[332230786,1721056237216,-500.0,0.00013954,2]
[332230787,1721056237226,-500.0,0.00013954,2]
[332230788,1721056237235,-500.0,0.00013954,2]
[332230789,1721056237246,-500.0,0.00013954,2]
[332230790,1721056237256,-500.0,0.00013954,2]
[332230791,1721056237265,-500.0,0.00013954,2]
[332230792,1721056237275,-261.248,0.0001396,2]
[332230793,1721056237286,-259.795,0.0001396,2]
[332230794,1721056237299,-185.834,0.0001396,2]
[332230795,1721056237308,-150.0,0.0001396,2]
[332230796,1721056237318,-150.235,0.0001396,2]
[332230797,1721056237327,-1830.0,0.0001396,2]
[332230798,1721056237337,-1252.0,0.0001396,2]
[332230799,1721056237348,-1660.0,0.0001396,2]
[332230800,1721056237357,-451.146,0.0001396,2]
[332230801,1721056237368,-809.0,0.0001396,2]
[332230802,1721056237377,-444.0,0.0001396,2]
[332230803,1721056237387,-619.0,0.0001396,2]
[332230804,1721056237396,-361.432,0.0001396,2]
[332230805,1721056237408,-354.573,0.0001396,2]
[332230806,1721056237419,-5818.0,0.0001396,2]
[332230807,1721056237428,-21525.584,0.0001396,2]
[332230808,1721056237438,-367.373,0.0001396,2]
[332230809,1721056237448,-1414.048,0.0001396,2]
[332230810,1721056237458,-5183.0,0.0001396,2]
[332230811,1721056237468,-4166.66,0.00013972,2]
[332230812,1721056237477,-585.43,0.00013972,2]
[332230813,1721056237487,-264.99,0.00013972,2]
[332230814,1721056237497,-805.16,0.00013972,2]
[332230815,1721056237507,-7280.18080595,0.00013978,3]
[332230816,1721056237516,-799.28166074,0.00013978,3]
[332230817,1721056237526,-80081.9888655,0.0001398,3]
[332230818,1721056237536,-3197.12664296,0.0001398,3]
[332230819,1721056237546,-14560.3616119,0.0001398,3]
[332230820,1721056237555,-1598.56332148,0.0001398,3]
[332230821,1721056237565,-799.28166074,0.00013988,3]
[332230822,1721056237575,-339.33772615,0.00013989,2]
[332230823,1721056237585,-7193.53494666,0.0001399,3]
[332230824,1721056237595,-500.0,0.0001399,2]
[332230825,1721056237605,-500.0,0.0001399,2]
[332230826,1721056237614,-1800.0,0.0001399,2]
[332230827,1721056237623,-500.0,0.0001399,2]
[332230828,1721056237632,-599.27376597,0.0001399,2]
[332230829,1721056237849,-800.72623403,0.0001399,2]
[332230830,1721056237859,-2688.43,0.00013995,2]
[332230831,1721056237869,-500.0,0.00013998,2]
[332230832,1721056237878,-500.0,0.00013998,2]
[332230833,1721056237888,-500.0,0.00013998,2]
[332230834,1721056237898,-500.0,0.00013998,2]
[332230835,1721056237910,-500.0,0.00013998,2]
[332230836,1721056237919,-500.0,0.00013998,2]
[332230837,1721056237929,-500.0,0.00013998,2]
[332230838,1721056237938,-500.0,0.00013998,2]
[332230839,1721056237947,-500.0,0.00013998,2]
[332230840,1721056237957,-500.0,0.00013998,2]
[332230841,1721056237967,-500.0,0.00013998,2]
[332230842,1721056237976,-500.0,0.00013998,2]
[332230843,1721056237985,-500.0,0.00013998,2]
[332230844,1721056237995,-500.0,0.00013998,2]
[332230845,1721056238004,-500.0,0.00013998,2]
[332230846,1721056238014,-500.0,0.00013998,2]
[332230847,1721056238023,-365.33333031,0.00013999,2]
[332230848,1721056238035,-126.66666969,0.00013999,2]
[332230849,1721056238044,-514.05569235,0.00013999,2]
[332230850,1721056238056,-10.65820654,0.00013999,2]
[332230851,1721056238065,-319.18107299,0.00013999,2]
[332230852,1721056238075,-235.82956703,0.00013999,2]
[332230853,1721056238085,-296.58726681,0.00013999,2]
[332230854,1721056238095,-411.12850773,0.00013999,2]
[332230855,1721056238104,-150.0,0.00013999,2]
[332230856,1721056238114,-335.98509105,0.00013999,2]
[332230857,1721056238123,-276.15184313,0.00013999,2]
[332230858,1721056238133,-507.40407645,0.00014,2]
[332230859,1721056238142,-2048.52036827,0.00014,2]
[332230860,1721056238154,-31668.0,0.00014,2]
[332230861,1721056238165,-1202.02211154,0.00014,2]
[332230862,1721056238176,-6646.53596774,0.00014,2]
[332230863,1721056238188,-307061.53836883,0.00014,2]
[332230864,1721056238198,-503795.18575168,0.00014,2]
[332230865,1721056238209,-925.07724057,0.00014,2]
[332230866,1721056238220,-469.02406266,0.00014,2]
[332230867,1721056238231,-5854.9058077,0.00014,2]
[332230868,1721056238242,-938.21279485,0.00014,2]
[332230876,1721056239726,-1051.02158597,0.00011199,2]
[332230877,1721056239738,-1330.40706199,0.00011199,2]
[332230878,1721056239747,-213.14294652,0.00013749,2]
[332230879,1721056239757,-18580.33719025,0.00014,2]
[332230880,1721056239768,-1510.79670571,0.00014,2]
[332230882,1721056239780,-1137.06093788,0.00014,2]
[332230883,1721056239842,-8729.53279439,0.00014,2]
[332230884,1721056239956,-1763.0065235,0.00014,2]
[332230885,1721056239968,-45842.80698287,0.00014,2]
[332230886,1721056239980,-118130.37484465,0.00014,2]
[332230887,1721056239991,-70186.91629342,0.00014,2]
[332230888,1721056240003,-469.89812434,0.00014,2]
[332230889,1721056240013,-539.00383144,0.00014,2]
[332230890,1721056240077,-5533.35431226,0.00014,2]
[332230892,1721056240089,-301.691,0.00014,2]
[332230893,1721056240100,-553.16,0.00014,2]
[332230894,1721056240111,-26369.15502696,0.00014,2]
[332230895,1721056240123,-15524.9999999,0.00014,2]
[332230908,1721056240283,-1681.61616314,0.00014,2]
[332230912,1721056240298,-1455.0,0.00014,2]
[332230921,1721056240379,-775.1703946,0.00014,2]
[332230923,1721056240391,-380.59,0.00014,2]
[332230925,1721056240401,-88121.07698023,0.00014,2]
[332230926,1721056240416,-21090.888,0.00014,2]
[332230927,1721056240427,-714629.60450583,0.00014,2]
[332230929,1721056240479,-470.89476816,0.00014,2]
[332230930,1721056240491,-6933.01282375,0.00014,2]
[332230931,1721056240539,-1129.10829927,0.00014,2]
[332230932,1721056240551,-1034.268095,0.00014,2]
[332230933,1721056240574,-975.50742252,0.00014,2]
[332230934,1721056240585,-807.664508,0.00014,2]
[332230935,1721056240597,-9547.7392,0.00014,2]
[332230936,1721056240608,-2550.43155844,0.00014,2]
[332230937,1721056240619,-677.16000002,0.00014,2]
[332230938,1721056240631,-1240.10450522,0.00014,2]
[332230939,1721056240644,-4737.26219031,0.00014,2]
[332230940,1721056240657,-460.53000002,0.00014,2]
[332230941,1721056240668,-631.49,0.00014,2]
[332230943,1721056240684,-232602.74631619,0.00014,2]
[332230945,1721056240696,-463.62,0.00014,2]
[332230948,1721056240707,-10541.58523598,0.00014,2]
[332231160,1721056243253,-213.14294652,0.00013787,2]
[332231162,1721056243262,-919.37712378,0.00014,2]
[332231164,1721056243274,-3055.37699996,0.00014,2]
[332231167,1721056243285,-1808.91785781,0.00014,2]
[332231169,1721056243301,-2276.45354664,0.00014,2]
[332231171,1721056243312,-13204.79817622,0.00014,2]
[332231174,1721056243327,-808.40499999,0.00014,2]
[332231180,1721056243389,-96297.69089796,0.00014,2]
[332231181,1721056243447,-699.72,0.00014,2]
[332231182,1721056243458,-634.62672,0.00014,2]
[332231183,1721056243511,-6973.38564092,0.00014,2]
[332231184,1721056243522,-544227.23202885,0.00014,2]
[332231185,1721056243546,-373.5132,0.00014,2]
[332231186,1721056243587,-219550.57241208,0.00014,2]
[332231240,1721056246326,-213.14294652,0.00013825,2]
[332231241,1721056246335,-61.54430744,0.00013999,2]
[332231242,1721056246347,-307.26069331,0.00013999,2]
[332231243,1721056246356,-3087.93930669,0.00014,2]
[332231244,1721056246368,-1158.3,0.00014,2]
[332231245,1721056246380,-295.21458624,0.00014,2]
[332231246,1721056246391,-1581.9831888,0.00014,2]
[332231247,1721056246402,-1692.44999999,0.00014,2]
[332231248,1721056246415,-564.299,0.00014,2]
[332231249,1721056246431,-4866.63579859,0.00014,2]
[332231250,1721056246442,-261689.47937827,0.00014,2]
[332231254,1721056246892,-9931.27538947,0.00014,2]
[332231255,1721056246903,-7233.48028,0.00014,2]
[332231256,1721056246918,-496.31424185,0.00014,2]
[332231257,1721056246930,-6333.50000001,0.00014,2]
[332231258,1721056246941,-28600.0,0.00014,2]
[332231259,1721056246952,-818.55008395,0.00014,2]
[332231260,1721056314283,183.89478799,0.00019452,30]
[332231261,1721056314395,183.89478799,0.00019753,30]
[332231268,1721056414874,1000.0,0.00027,120]
[332231269,1721056532705,151.0,0.0001985,120]
[332231277,1721056950183,2739.0,0.0001399,30]
[332231278,1721056950798,2739.0,0.0001398,30]
[332231279,1721056951264,2739.0,0.0001397,30]
[332231280,1721056951365,170.0,0.0001399,30]
[332231281,1721056951756,2739.0,0.0001399,30]
[332231282,1721056952028,170.0,0.0001398,30]
[332231283,1721056952224,2739.0,0.0001398,30]
[332231284,1721056952494,170.0,0.0001397,30]
[332231285,1721056952697,96.98160969,0.0001397,30]
[332231286,1721056952911,2642.01839031,0.0001397,30]
[332231287,1721056952983,170.0,0.0001399,30]
[332231288,1721056953162,2739.0,0.0001399,30]
[332231289,1721056953481,170.0,0.0001398,30]
[332231290,1721056953646,2739.0,0.0001398,30]
[332231291,1721056954097,170.0,0.0001397,30]
[332231292,1721056954124,2739.0,0.0001399,30]
[332231293,1721056954618,170.0,0.0001399,30]
[332231294,1721056955255,170.0,0.0001398,30]
[332231295,1721056955322,2741.67,0.0001398,30]
[332231296,1721056955754,170.0,0.0001399,30]
[332231297,1721056956226,176.9,0.0001398,30]
[332231300,1721057070079,150.5,0.0001399,30]
[332231301,1721057070109,2445.0,0.0001399,30]
[332231302,1721057070260,150.5,0.0001399,30]
[332231303,1721057070574,2445.0,0.0001398,30]
[332231304,1721057070602,194.5,0.0001398,30]
[332231305,1721057070761,150.5,0.0001398,30]
[332231306,1721057071041,2445.0,0.0001397,30]
[332231307,1721057071281,177.0,0.0001397,30]
[332231308,1721057071581,2445.0,0.0001399,30]
[332231309,1721057072138,2445.0,0.0001398,30]
[332231311,1721057073086,2445.0,0.0001397,30]
[332231312,1721057073183,2445.0,0.0001399,30]
[332231313,1721057073677,2445.0,0.0001398,30]
[332231314,1721057074189,2445.0,0.0001399,30]
[332231315,1721057074669,2446.41,0.0001398,30]
[332231316,1721057106055,151.0,0.00019896,120]
[332231318,1721057120935,527.84420395,9e-05,2]
[332231319,1721057148740,960.53206533,9e-05,2]
[332231320,1721057149813,600.0,9e-05,2]
[332231321,1721057154524,349.01132895,9e-05,2]
[332231322,1721057155853,9633.56152584,6.94e-05,2]
[332231323,1721057158776,1368.16531357,9e-05,2]
[332231324,1721057170558,1646.55170933,9e-05,2]
[332231325,1721057177081,2560.45191306,9e-05,2]
[332231326,1721057187443,2560.45191306,9e-05,2]
[332231328,1721057255008,349.01132895,9e-05,2]
[332231334,1721057310447,2030.27606183,9e-05,2]
[332231359,1721057355026,349.01132895,9e-05,2]
[332231367,1721057402683,150.0,9e-05,2]
[332231368,1721057403348,150.0,9e-05,2]
[332231369,1721057403695,150.0,9e-05,2]
[332231370,1721057403750,150.0,9e-05,2]
[332231371,1721057403962,150.0,9e-05,2]
[332231372,1721057404155,150.0,9e-05,2]
[332231373,1721057404330,150.0,9e-05,2]
[332231374,1721057405036,150.0,9e-05,2]
[332231375,1721057405249,150.0,9e-05,2]
[332231376,1721057405461,150.0,9e-05,2]
[332231377,1721057405659,150.0,9e-05,2]
[332231378,1721057405851,150.0,9e-05,2]
[332231379,1721057406058,150.0,9e-05,2]
[332231380,1721057406253,150.0,9e-05,2]
[332231381,1721057406474,150.0,9e-05,2]
[332231382,1721057406668,150.0,9e-05,2]
[332231383,1721057406875,150.0,9e-05,2]
[332231384,1721057407062,158.88985679,9e-05,2]
[332231387,1721057427922,1000.0,0.0001,2]
[332231394,1721057432659,-900.84,0.00010787,2]
[332231395,1721057432669,-160.0513,0.00010809,2]
[332231396,1721057432679,-300.0,0.00010908,2]
[332231397,1721057432691,-150.0,0.00010908,2]
[332231398,1721057432701,-266.67996782,0.00010909,2]
[332231399,1721057432710,-193.76221892,0.00010909,2]
[332231400,1721057432720,-215.87645086,0.00010909,2]
[332231401,1721057432732,-156.31937905,0.00010909,2]
[332231402,1721057432741,-166.30174249,0.00010909,2]
[332231403,1721057432751,-203.41769491,0.00010909,2]
[332231404,1721057432761,-211.43777772,0.00010909,2]
[332231405,1721057432771,-163.84092695,0.00010909,2]
[332231406,1721057432781,-155.0,0.00010909,2]
[332231407,1721057432790,-310.0,0.00010909,2]
[332231408,1721057432799,-210.40265388,0.00010909,2]
[332231409,1721057432809,-1422.8636011,0.00010909,2]
[332231410,1721057432818,-155.0,0.00010909,2]
[332231411,1721057432828,-648.23322978,0.00010909,2]
[332231412,1721057432838,-1254.63523304,0.00010909,2]
[332231413,1721057432847,-356.60665527,0.00010909,2]
[332231414,1721057432857,-196.70507819,0.00010909,2]
[332231415,1721057432867,-155.0,0.00010909,2]
[332231417,1721057432876,-155.35101932,0.00010909,2]
[332231419,1721057432887,-1905.64778217,0.00010909,2]
[332231421,1721057432896,-156.34829613,0.00010909,2]
[332231422,1721057432906,-409.23644233,0.00010909,2]
[332231423,1721057432916,-10876.78488563,0.00011,2]
[332231424,1721057432925,-5607.32059616,0.00011097,2]
[332231425,1721057432934,-1136.70475368,0.00011098,2]
[332231426,1721057432943,-757.78031459,0.00011098,2]
[332231437,1721057438421,-2110.03324352,0.00011098,2]
[332231438,1721057438433,-1673.59874048,0.00011098,2]
[332231439,1721057438444,-850.99733152,0.00011098,2]
[332231440,1721057438453,-1049.00266848,0.00011098,2]
[332231441,1721057438464,-569.78816292,0.00011098,2]
[332231442,1721057438476,-1220.15595404,0.00011098,2]
[332231443,1721057438487,-3180.7408274,0.00011098,2]
[332231444,1721057438504,-161.17917223,0.00011098,2]
[332231445,1721057438514,-1272.77007112,0.00011098,2]
[332231446,1721057438523,-155.0,0.00011098,2]
[332231447,1721057438532,-155.92115813,0.00011098,2]
[332231448,1721057438541,-168.98040525,0.00011098,2]
[332231449,1721057438551,-1821.68828028,0.00011098,2]
[332231450,1721057438562,-653.67901261,0.00011098,2]
[332231451,1721057438577,-602.20828899,0.00011098,2]
[332231452,1721057438586,-492.55741441,0.00011098,2]
[332231453,1721057438595,-1500.0,0.00011098,2]
[332231454,1721057438605,-304.84513288,0.00011098,2]
[332231455,1721057438614,-298.10716168,0.00011098,2]
[332231456,1721057438623,-15153.37652187,0.00011199,2]
[332231457,1721057438632,-1426.98032345,0.00011199,2]
[332231458,1721057438644,-1603.2000001,0.00011199,2]
[332231459,1721057438659,-7975.15933869,0.00011199,2]
[332231460,1721057438671,-15451.9318012,0.00011199,2]
[332231461,1721057438680,-9825.99256669,0.00011199,2]
[332231462,1721057438718,-704.37140939,0.00011199,2]
[332231463,1721057438730,-2835.14404974,0.00011199,2]
[332231464,1721057438739,-2381.42864796,0.00011199,2]
[332231465,1721057438748,-19649.39918542,0.00011199,2]
[332231466,1721057438757,-271.41966975,0.000118,2]
[332231467,1721057438766,-250.0,0.00012275,2]
[332231468,1721057438775,-1000.0,0.00012308,2]
[332231469,1721057438785,-4470.6566768,0.00012312,2]
[332231470,1721057438796,-15177.79802953,0.00012312,2]
[332231471,1721057438807,-4241.54529367,0.00012312,2]
[332231472,1721057438816,-367.07162065,0.00012314,2]
[332231473,1721057438826,-588.84694025,0.0001251,2]
[332231475,1721057438835,-452.07379537,0.0001259,2]
[332231478,1721057438846,-181.41216029,0.0001259,2]
[332231480,1721057438855,-150.0,0.000126,2]
[332231481,1721057438865,-250.0,0.00012627,2]
[332231483,1721057438875,-190.59,0.00012677,2]
[332231485,1721057438884,-5006.1923,0.00012684,2]
[332231487,1721057438893,-155.57,0.00012965,2]
[332231489,1721057438902,-3721.17,0.00012977,2]
[332231490,1721057438913,-979.55417132,0.0001305,2]
[332231491,1721057438922,-900.84,0.00013051,2]
[332231492,1721057438931,-2279.10597725,0.00013128,3]
[332231493,1721057438942,-2123.93814826,0.00013128,3]
[332231494,1721057438953,-423.9144272,0.00013128,3]
[332231495,1721057438964,-1273.04144729,0.00013128,3]
[332231496,1721057438973,-2740.96246978,0.00013128,2]
[332231497,1721057438983,-1311.76154064,0.00013128,2]
[332231498,1721057438994,-816.07128584,0.00013128,2]
[332231499,1721057439005,-613.1296433,0.00013128,2]
[332231500,1721057439014,-271.15374095,0.000132,2]
[332231549,1721057440517,-436.0661831,0.00011098,2]
[332231550,1721057440570,-578.9757172,0.00011098,2]
[332231551,1721057440580,-1.79889181,0.00011098,2]
[332231552,1721057440722,-625.98270512,0.00011098,2]
[332231553,1721057440734,-155.0,0.00013128,2]
[332231554,1721057440744,-742.84625905,0.000132,2]
[332231555,1721057440754,-164.02052985,0.00013472,2]
[332231556,1721057440763,-8955.9423,0.00013474,2]
[332231557,1721057440772,-5183.0,0.0001348,2]
[332231558,1721057440782,-5818.0,0.0001348,2]
[332231559,1721057440791,-1331.842,0.0001348,2]
[332231560,1721057440800,-1829.0,0.0001348,2]
[332231561,1721057440810,-1252.0,0.0001348,2]
[332231562,1721057440820,-175.595965,0.00013498,2]
[332231563,1721057440829,-183.095947,0.00013498,2]
[332231564,1721057440838,-175.740965,0.00013498,2]
[332231565,1721057440847,-214.082466,0.00013498,2]
[332231566,1721057440856,-28685.18313975,0.0001358,2]
[332231567,1721057440865,-500.0,0.00013698,2]
[332231568,1721057440875,-500.0,0.00013698,2]
[332231569,1721057440884,-310.46457555,0.00013698,2]
[332231570,1721057440892,-1747.08,0.00013698,2]
[332231571,1721057440902,-500.0,0.00013698,2]
[332231572,1721057440911,-191.4,0.00013699,2]
[332231573,1721057440922,-2228.62,0.00013699,2]
[332231575,1721057440931,-966.86633851,0.00013736,2]
[332231577,1721057440940,-500.0,0.00013753,2]
[332231579,1721057440950,-500.0,0.00013753,2]
[332231581,1721057440959,-1747.08,0.00013753,2]
[332231583,1721057440968,-500.0,0.00013753,2]
[332231585,1721057440978,-158.09627228,0.00013759,2]
[332231587,1721057440987,-213.14294652,0.00013787,2]
[332231589,1721057440996,-711.00550788,0.0001379,2]
[332231591,1721057441006,-711.00550783,0.0001379,2]
[332231593,1721057441015,-711.00550783,0.0001379,2]
[332231595,1721057441024,-711.00550783,0.0001379,2]
[332231597,1721057441034,-711.00550783,0.0001379,2]
[332231599,1721057441044,-711.00550783,0.0001379,2]
[332231601,1721057441053,-711.00550783,0.00013799,2]
[332231603,1721057441062,-500.0,0.00013808,2]
[332231605,1721057441073,-500.0,0.00013808,2]
[332231607,1721057441082,-1747.08,0.00013808,2]
[332231609,1721057441091,-289.1041693,0.00013808,2]
[332231611,1721057441101,-711.00550783,0.00013833,2]
[332231613,1721057441110,-1000.0,0.00013847,2]
[332231615,1721057441119,-3000.0,0.0001386,2]
[332231617,1721057441128,-203.82,0.0001386,2]
[332231618,1721057441137,-500.0,0.00013863,2]
[332231619,1721057441147,-500.0,0.00013863,2]
[332231620,1721057441156,-1747.08,0.00013863,2]
[332231621,1721057441166,-711.00550783,0.00013866,2]
[332231622,1721057441176,-53285.6704711,0.0001387,3]
[332231623,1721057441185,-203.82,0.0001387,2]
[332231624,1721057441195,-203.82,0.0001387,2]
[332231625,1721057441204,-203.82,0.0001387,2]
[332231626,1721057441213,-203.82,0.00013879,2]
[332231627,1721057441222,-500.0,0.00013879,2]
[332231628,1721057441232,-500.0,0.00013879,2]
[332231629,1721057441241,-500.0,0.00013879,2]
[332231630,1721057441250,-62968.76359103,0.0001388,2]
[332231631,1721057441262,-1152.30135533,0.0001388,2]
[332231632,1721057441278,-2725.34596418,0.0001388,2]
[332231633,1721057441289,-21630.53821117,0.0001388,2]
[332231634,1721057441301,-12192.77031662,0.0001388,2]
[332231678,1721057443531,-662.74,0.00011199,2]
[332231683,1721057443576,-2078.22246978,0.00011199,2]
[332231684,1721057443586,-5032.46488387,0.00013275,2]
[332231685,1721057443596,-118112.98134476,0.0001388,2]
[332231687,1721057443605,-500.0,0.00013887,2]
[332231689,1721057443616,-500.0,0.00013888,2]
[332231690,1721057443625,-200.0,0.00013888,2]
[332231691,1721057443634,-6660.70880889,0.00013889,3]
[332231692,1721057443643,-19982.1264267,0.0001389,3]
[332231693,1721057443658,-629.7,0.0001389,2]
[332231694,1721057443668,-220.57,0.0001389,3]
[332231695,1721057443676,-500.0,0.00013898,2]
[332231696,1721057443685,-550.59947887,0.00013899,2]
[332231697,1721057443695,-500.0,0.00013899,2]
[332231698,1721057443705,-500.0,0.00013899,2]
[332231699,1721057443714,-500.0,0.00013899,2]
[332231701,1721057443723,-500.0,0.00013899,2]
[332231703,1721057443733,-500.0,0.00013899,2]
[332231705,1721057443742,-500.0,0.00013899,2]
[332231707,1721057443751,-500.0,0.00013899,2]
[332231708,1721057443760,-500.0,0.00013899,2]
[332231709,1721057443770,-500.0,0.00013899,2]
[332231710,1721057443779,-500.0,0.00013899,2]
[332231711,1721057443788,-500.0,0.00013899,2]
[332231712,1721057443797,-500.0,0.00013899,2]
[332231713,1721057443806,-527.60194171,0.00013899,2]
[332231714,1721057443816,-500.0,0.00013899,2]
[332231715,1721057443825,-500.0,0.00013899,2]
[332231716,1721057443834,-3125.0,0.00013899,2]
[332231717,1721057443844,-500.0,0.00013899,2]
[332231718,1721057443853,-158.49361108,0.00013899,2]
[332231719,1721057443862,-155.0,0.00013899,2]
[332231720,1721057443871,-2229.91597303,0.000139,2]
[332231721,1721057443880,-1000.0,0.000139,2]
[332231722,1721057443890,-1118.4259,0.000139,2]
[332231723,1721057443899,-11495.1204,0.000139,2]
[332231724,1721057443908,-7607.8268,0.000139,2]
[332231725,1721057443918,-1357.6108,0.000139,2]
[332231726,1721057443928,-331.05187269,0.000139,2]
[332231727,1721057443938,-711.00550783,0.000139,2]
[332231728,1721057443947,-213.14294652,0.000139,2]
[332231729,1721057443957,-150.50133856,0.000139,2]
[332231730,1721057443966,-252.5,0.00013917,2]
[332231731,1721057443976,-500.0,0.00013917,2]
[332231732,1721057443985,-1747.08,0.00013917,2]
[332231733,1721057443995,-500.0,0.00013934,2]
[332231743,1721057444190,-500.0,0.00013934,2]
[332231744,1721057444200,-500.0,0.00013934,2]
[332231746,1721057444210,-6660.70880889,0.00013944,3]
[332231747,1721057444220,-258.71339457,0.0001395,2]
[332231748,1721057444230,-624.7,0.00013953,2]
[332231749,1721057444240,-500.0,0.00013953,2]
[332231750,1721057444250,-500.0,0.00013954,2]
[332231751,1721057444260,-500.0,0.00013954,2]
[332231752,1721057444269,-500.0,0.00013954,2]
[332231753,1721057444278,-500.0,0.00013954,2]
[332231754,1721057444287,-500.0,0.00013954,2]
[332231755,1721057444296,-500.0,0.00013954,2]
[332231756,1721057444306,-500.0,0.00013954,2]
[332231757,1721057444315,-500.0,0.00013954,2]
[332231758,1721057444325,-500.0,0.00013954,2]
[332231759,1721057444335,-500.0,0.00013954,2]
[332231760,1721057444344,-500.0,0.00013954,2]
[332231761,1721057444354,-500.0,0.00013954,2]
[332231762,1721057444363,-524.29794279,0.00013954,2]
[332231763,1721057444373,-500.0,0.00013954,2]
[332231764,1721057444382,-3125.0,0.00013954,2]
[332231765,1721057444392,-6660.70880889,0.00013969,3]
[332231766,1721057444402,-6660.70880889,0.0001397,3]
[332231767,1721057444412,-500.0,0.00013972,2]
[332231768,1721057444423,-1747.08,0.00013972,2]
[332231769,1721057444432,-173.0,0.00013973,2]
[332231770,1721057444442,-6660.70880889,0.00013979,3]
[332231771,1721057444451,-500.0,0.00013979,2]
[332231772,1721057444460,-2000.0,0.00013979,2]
[332231773,1721057444470,-500.0,0.00013979,2]
[332231774,1721057444479,-500.0,0.00013979,2]